bitfinex/quotes_ETHUSD_20250324
["timestamp","ask_amount","ask_price","bid_price","bid_amount"]
[1742817020155,3.124596,2100.4,2100.2,4.76145]
[1742817020358,3.124596,2100.4,2100.2,5.01468838]
[1742817020557,3.124596,2100.4,2100.2,0.25323838]
[1742817021361,7.885596,2100.4,2100.2,0.25323838]
[1742817021730,0.124596,2100.4,2100.2,0.25323838]
[1742817021933,3.124596,2100.4,2100.2,0.25323838]
[1742817022765,7.885606,2100.4,2100.2,0.25323838]
[1742817023062,0.124596,2100.4,2100.2,0.25323838]
[1742817023362,4.885666,2100.4,2100.2,0.25323838]
[1742817023531,0.124596,2100.4,2100.2,0.25323838]
[1742817023858,0.124596,2100.4,2100.3,4.76122]
[1742817024260,0.124596,2100.4,2100.3,5.01426642]
[1742817024561,0.124596,2100.4,2100.3,5.78186642]
[1742817024857,0.124596,2100.4,2100.3,0.25304642]
[1742817025230,0.124596,2100.4,2100.1,5.52921]
[1742817025444,0.124596,2100.4,2100.2,5.01466838]
[1742817025639,0.124596,2100.4,2100.2,0.25323838]
[1742817026045,0.124596,2100.4,2100.2,1.22795263]
[1742817026371,0.124596,2100.4,2100.2,5.98936263]
[1742817026737,0.124596,2100.4,2100.2,1.22795263]
[1742817027155,0.893496,2100.4,2100.2,1.22795263]
[1742817027351,5.654616,2100.4,2100.2,0.25323838]
[1742817029469,0.124596,2100.4,2100.2,5.01466838]
[1742817029764,0.124596,2100.4,2100.2,6.9140792]
[1742817029945,0.124596,2100.4,2100.2,2.1526492]
[1742817030380,0.124596,2100.4,2100.2,6.9139192]
[1742817030736,0.124596,2100.4,2100.3,4.76122]
[1742817031265,0.124596,2100.4,2100.3,0.25279823]
[1742817031656,5.637786,2100.4,2100.1,4.76166]
[1742817031862,5.637786,2100.4,2100.2,0.37742973]
[1742817033545,0.876796,2100.4,2100.2,0.37742973]
[1742817034171,5.637876,2100.4,2100.2,0.37742973]
[1742817034377,5.637876,2100.4,2100.0,6.46846984]
[1742817034565,5.637876,2100.4,2100.0,7.72731682]
[1742817034862,5.637876,2100.4,2100.1,0.37762763]
[1742817035052,5.637876,2100.4,2100.1,5.13926763]
[1742817035243,4.885676,2100.4,2100.1,5.13926763]
[1742817036172,0.124596,2100.4,2100.1,9.90083763]
[1742817036476,4.885686,2100.4,2100.2,1.28663245]
[1742817036775,4.885686,2100.4,2100.1,0.37762763]
[1742817037478,4.885686,2100.4,2100.1,5.13928763]
[1742817037679,4.76145,2100.2,2100.1,0.37762763]
[1742817037880,12.52271,2100.3,2100.1,0.37762763]
[1742817038068,12.52267,2100.3,2100.1,0.37762763]
[1742817038269,4.76145,2100.2,2100.1,0.37762763]
[1742817038666,4.7619,2100.0,2099.6,11.63764]
[1742817038976,4.7619,2100.0,2099.7,5.00380878]
[1742817039180,9.52397,2100.0,2099.7,5.00380878]
[1742817039382,4.7619,2100.0,2099.7,5.00380878]
[1742817040281,4.7619,2100.0,2099.7,1.32224478]
[1742817040459,9.52397,2100.0,2099.7,1.32224478]
[1742817041085,4.76218,2099.9,2099.7,1.32224478]
[1742817041381,4.76218,2099.9,2099.7,0.37838428]
[1742817041981,5.5936,2100.0,2099.7,0.37838428]
[1742817042190,4.76214,2099.9,2099.7,0.37838428]
[1742817042980,4.76197,2100.0,2099.7,0.37838428]
[1742817043680,4.76217,2099.9,2099.7,0.37838428]
[1742817044151,4.76197,2100.0,2099.7,0.37838428]
[1742817045279,9.52403,2100.0,2099.7,0.37838428]
[1742817046256,4.76214,2099.9,2099.7,0.37838428]
[1742817046456,4.76197,2100.0,2099.7,0.37838428]
[1742817047755,5.577,2100.1,2099.7,5.14084428]
[1742817047955,10.33883,2100.1,2099.7,5.14084428]
[1742817048385,5.577,2100.1,2099.7,9.90328428]
[1742817048588,5.577,2100.1,2099.7,0.37838428]
[1742817048884,5.577,2100.1,2099.7,5.14086428]
[1742817049085,4.7617,2100.1,2099.7,6.30349406]
[1742817049455,4.7617,2100.1,2099.7,6.30355406]
[1742817049988,4.7617,2100.1,2099.7,11.06604406]
[1742817050467,4.7617,2100.1,2099.7,6.30354406]
[1742817050665,4.7617,2100.1,2099.7,11.06596406]
[1742817050889,4.7619,2100.0,2099.7,6.30347406]
[1742817052184,4.7617,2100.1,2099.7,6.30347406]
[1742817053083,9.52354,2100.1,2099.7,6.30347406]
[1742817053267,4.7617,2100.1,2099.7,5.14080428]
[1742817053785,4.76208,2100.0,2099.7,0.37838428]
[1742817054785,4.76207,2100.0,2099.7,0.37838428]
[1742817055098,5.56297,2100.0,2099.7,0.37838428]
[1742817055289,10.32508,2100.0,2099.7,0.37838428]
[1742817055468,4.76216,2099.9,2099.7,0.37838428]
[1742817056285,4.76216,2099.9,2099.7,1.54110906]
[1742817065814,7.76235,2099.8,2099.7,0.37838428]
[1742817066097,30.898146,2099.8,2099.7,0.37838428]
[1742817066388,4.76349,2099.3,2099.0,10.88414]
[1742817066561,4.76349,2099.3,2099.0,4.76414]
[1742817066765,5.55834,2099.4,2099.1,5.11457865]
[1742817066984,5.55834,2099.4,2099.1,1.8910475]
[1742817067180,4.76334,2099.4,2099.1,1.8910475]
[1742817067383,9.31621,2099.5,2099.2,5.58547]
[1742817067569,9.31618,2099.5,2099.2,0.8218]
[1742817067774,14.07937,2099.5,2099.3,0.3503225]
[1742817067969,9.31618,2099.5,2099.3,0.3503225]
[1742817068280,17.07939,2099.5,2099.4,0.35012445]
[1742817068486,4.76329,2099.4,2099.1,5.73318247]
[1742817068686,4.76329,2099.4,2099.2,0.35052057]
[1742817069705,9.52672,2099.4,2099.2,0.35052057]
[1742817069901,4.76349,2099.3,2099.2,0.35052057]
[1742817070293,2.55918089,2099.3,2098.9,4.74468989]
[1742817070477,4.76394,2099.1,2099.0,0.35091676]
[1742817070678,7.76394,2099.1,2099.0,0.35091676]
[1742817071705,7.76394,2099.1,2098.7,16.5865969]
[1742817071907,7.76394,2099.1,2098.8,0.35313262]
[1742817072097,7.76394,2099.1,2098.8,4.76459]
[1742817072295,7.76394,2099.1,2098.9,0.35293448]
[1742817072492,7.76394,2099.1,2098.7,13.56190659]
[1742817072803,7.76394,2099.1,2098.8,5.11774262]
[1742817073301,12.52804,2099.1,2098.8,0.35313262]
[1742817073601,4.7642,2099.0,2098.7,13.56190659]
[1742817073804,4.7642,2099.0,2098.9,0.35293448]
[1742817073981,4.7642,2099.0,2098.8,0.35313262]
[1742817074185,4.7642,2099.0,2098.9,0.35293448]
[1742817074527,4.7642,2099.0,2098.7,13.56190659]
[1742817074819,4.7642,2099.0,2098.9,0.35293448]
[1742817074975,4.7642,2099.0,2098.8,0.35313262]
[1742817075182,4.7642,2099.0,2098.9,0.35293448]
[1742817075605,4.7642,2099.0,2098.7,5.7018869]
[1742817075794,4.7642,2099.0,2098.9,0.35293448]
[1742817075999,7.76399,2099.1,2098.8,0.35313262]
[1742817076227,7.76399,2099.1,2098.9,0.35293448]
[1742817076576,7.76399,2099.1,2098.7,5.7018669]
[1742817076776,7.76399,2099.1,2098.7,10.4665369]
[1742817076976,7.76399,2099.1,2098.8,0.35313262]
[1742817077211,12.52813,2099.1,2098.8,0.35313262]
[1742817077380,12.52813,2099.1,2098.7,5.7018569]
[1742817077578,12.52813,2099.1,2098.9,0.35293448]
[1742817077785,7.76399,2099.1,2098.8,0.35313262]
[1742817078114,7.76399,2099.1,2098.9,0.35293448]
[1742817078326,12.52809,2099.1,2098.7,5.7018569]
[1742817078622,7.76399,2099.1,2098.7,12.20658859]
[1742817078921,7.76399,2099.1,2098.8,0.35313262]
[1742817079286,7.76399,2099.1,2098.7,12.20662859]
[1742817079481,7.76399,2099.1,2098.8,0.35313262]
[1742817079713,7.76399,2099.1,2098.8,4.76453]
[1742817079891,7.76399,2099.1,2098.9,0.35293448]
[1742817080094,3.0,2099.1,2098.9,0.35293448]
[1742817080307,3.0,2099.1,2099.0,4.76417]
[1742817080491,3.0,2099.1,2099.0,0.35273636]
[1742817080697,3.0,2099.1,2099.0,5.11690636]
[1742817080893,3.0,2099.2,2099.0,5.11682636]
[1742817081099,3.8154,2099.3,2099.0,5.11682636]
[1742817081407,3.0,2099.4,2099.2,4.76371]
[1742817081610,3.0,2099.4,2099.2,4.76357]
[1742817081813,3.0,2099.4,2099.3,0.356325]
[1742817082011,3.0,2099.4,2099.3,5.119815]
[1742817082206,3.0,2099.4,2099.3,4.76349]
[1742817082410,3.0,2099.4,2099.3,5.119815]
[1742817083189,3.0,2099.5,2099.3,5.119665]
[1742817083625,3.0,2099.6,2099.3,5.119665]
[1742817084899,7.76286,2099.6,2099.3,0.356325]
[1742817085101,7.76286,2099.6,2099.2,10.29087]
[1742817085294,7.76286,2099.6,2099.3,0.356325]
[1742817085513,7.76286,2099.6,2099.2,11.26734834]
[1742817085708,7.76286,2099.6,2099.3,0.356325]
[1742817085921,7.76286,2099.6,2099.2,11.26734834]
[1742817086128,7.76286,2099.6,2099.3,0.356325]
[1742817086589,7.76286,2099.6,2099.2,6.50377834]
[1742817086786,3.0,2099.6,2099.4,0.35612695]
[1742817087006,3.0,2099.6,2099.3,0.356325]
[1742817087283,7.76288,2099.6,2099.4,0.35612695]
[1742817087487,7.76288,2099.6,2099.2,11.26741834]
[1742817087747,4.76311,2099.5,2099.3,0.356325]
[1742817088084,4.76311,2099.5,2099.2,5.74030834]
[1742817088289,4.76311,2099.5,2099.3,0.356325]
[1742817088487,4.76311,2099.5,2099.2,0.97660834]
[1742817088717,12.52584,2099.6,2099.3,0.356325]
[1742817088901,12.52584,2099.6,2099.2,5.74027834]
[1742817089101,12.52584,2099.6,2099.3,0.356325]
[1742817089318,4.76307,2099.5,2099.2,5.74027834]
[1742817089523,4.76307,2099.5,2099.3,0.356325]
[1742817089698,4.76307,2099.5,2099.2,0.97660834]
[1742817089903,4.76307,2099.5,2099.3,0.356325]
[1742817090220,9.52626,2099.5,2099.4,0.35612695]
[1742817090395,4.76349,2099.3,2099.2,0.97660834]
[1742817090600,7.76349,2099.3,2099.2,0.97660834]
[1742817090787,7.76349,2099.3,2099.2,0.35492611]
[1742817090992,8.53399,2099.3,2099.2,0.35492611]
[1742817092213,32.575518,2099.3,2098.7,0.96742028]
[1742817092427,0.7588,2098.9,2098.5,6.12]
[1742817092767,4.76487,2098.7,2098.3,11.68752]
[1742817092918,4.76487,2098.7,2098.6,0.30353918]
[1742817093121,4.76487,2098.7,2098.4,0.96150451]
[1742817093306,7.76487,2098.7,2098.5,0.30373738]
[1742817093910,4.553,2099.0,2098.7,5.52757]
[1742817094139,0.55,2099.4,2098.8,5.06838921]
[1742817094140,3.0,2098.9,2098.8,5.06838921]
[1742817094515,9.52775,2099.2,2098.8,5.06838921]
[1742817094516,3.0,2099.0,2098.8,0.30377921]
[1742817094696,3.0,2099.1,2098.8,4.76441]
[1742817094915,3.0,2099.1,2098.9,0.30351743]
[1742817095114,10.07132,2099.3,2098.9,5.06787743]
[1742817095297,3.0,2099.2,2098.9,0.30351743]
[1742817095491,4.76383,2099.2,2098.9,0.30351743]
[1742817096226,4.76397,2099.1,2098.9,0.30351743]
[1742817097141,7.76383,2099.2,2098.9,0.30351743]
[1742817097314,12.5277,2099.2,2098.9,0.30351743]
[1742817097514,4.76395,2099.1,2098.9,0.30351743]
[1742817097730,4.76395,2099.1,2098.7,10.29232]
[1742817098032,4.76395,2099.1,2098.8,1.94494757]
[1742817098204,4.76395,2099.1,2098.8,2.91775031]
[1742817098400,4.76395,2099.1,2098.8,7.68237031]
[1742817099538,3.0,2099.2,2098.8,7.68237031]
[1742817099539,7.76384,2099.2,2098.8,7.68237031]
[1742817099838,7.76384,2099.2,2098.8,12.44684031]
[1742817100039,7.76384,2099.2,2098.8,7.68222031]
[1742817100440,7.76384,2099.2,2098.9,4.76438]
[1742817100642,7.76384,2099.2,2099.0,0.3033193]
[1742817101021,3.0,2099.2,2098.9,4.76431]
[1742817101226,4.76328,2099.4,2099.0,6.58221377]
[1742817101429,10.08665,2099.5,2099.1,4.76385]
[1742817101611,3.0,2099.4,2099.2,0.30292311]
[1742817102342,7.7633,2099.4,2099.2,0.30292311]
[1742817102706,3.0,2099.5,2099.2,0.30292311]
[1742817102911,3.0,2099.5,2099.3,4.76349]
[1742817103244,3.0,2099.7,2099.4,5.06578699]
[1742817103910,7.76266,2099.7,2099.4,5.06578699]
[1742817104606,4.76266,2099.7,2099.4,5.06578699]
[1742817105236,3.0,2099.7,2099.4,5.06561699]
[1742817105426,7.76303,2099.5,2099.4,0.30252699]
[1742817105628,4.76371,2099.2,2099.1,6.12]
[1742817105829,4.76371,2099.2,2099.1,0.30063973]
[1742817106029,4.76371,2099.2,2098.9,0.7961]
[1742817106218,4.76371,2099.2,2099.0,0.30061521]
[1742817106423,4.76379,2099.2,2099.0,0.30061521]
[1742817110351,3.0,2099.2,2099.0,0.30061521]
[1742817110654,4.76349,2099.3,2099.0,0.30061521]
[1742817111356,3.0,2099.3,2099.0,5.06469521]
[1742817111554,7.76358,2099.3,2099.0,0.30061521]
[1742817111723,7.76358,2099.3,2099.0,5.06477521]
[1742817111923,3.0,2099.4,2099.1,4.76385]
[1742817112144,3.0,2099.4,2099.1,4.76378]
[1742817112354,3.0,2099.4,2099.2,0.30021901]
[1742817112757,3.0,2099.4,2099.2,5.06390901]
[1742817112956,3.0,2099.5,2099.2,5.87161901]
[1742817113168,7.76313,2099.5,2099.2,5.87161901]
[1742817113658,7.76313,2099.5,2099.2,1.10801901]
[1742817114159,3.0,2099.6,2099.3,4.76338]
[1742817114357,0.7746,2099.8,2099.2,1.10801901]
[1742817114561,0.35389646,2099.8,2099.5,0.7652]
[1742817114739,0.35389646,2099.8,2099.6,4.76281]
[1742817114930,4.76216,2099.9,2099.7,0.29881541]
[1742817115958,9.52446,2099.9,2099.7,0.29881541]
[1742817116128,4.76235,2099.8,2099.7,0.29881541]
[1742817116332,4.7626,2099.7,2099.3,10.28822]
[1742817116554,4.7626,2099.7,2099.4,0.29940944]
[1742817116736,4.76235,2099.8,2099.4,5.06258944]
[1742817116937,4.76266,2099.7,2099.4,5.06258944]
[1742817117355,4.76235,2099.8,2099.4,5.06258944]
[1742817117562,9.52487,2099.8,2099.4,5.06258944]
[1742817117930,4.76235,2099.8,2099.4,5.06258944]
[1742817118130,9.52493,2099.8,2099.4,5.06258944]
[1742817118361,4.76263,2099.7,2099.4,5.06258944]
[1742817118557,4.76263,2099.7,2099.4,0.29940944]
[1742817119066,9.5254,2099.7,2099.4,0.29940944]
[1742817119559,4.7629,2099.6,2099.4,0.29940944]
[1742817119765,4.76303,2099.5,2099.4,0.29940944]
[1742817120558,4.76398,2099.1,2098.9,7.81389097]
[1742817120762,4.76376,2099.2,2098.9,1.69389097]
[1742817120965,4.76326,2099.4,2099.0,4.76398]
[1742817121466,4.76356,2099.3,2099.0,4.76398]
[1742817121667,4.76332,2099.4,2099.0,10.6502151]
[1742817121835,4.76332,2099.4,2099.0,5.8862051]
[1742817122035,4.76332,2099.4,2099.1,4.7639]
[1742817122461,9.52674,2099.4,2099.0,5.8863351]
[1742817122635,4.76332,2099.4,2099.0,5.8863351]
[1742817122835,4.76332,2099.4,2099.1,4.76392]
[1742817123059,8.12500964,2099.5,2099.1,9.52772]
[1742817123266,8.12500964,2099.5,2099.2,0.25138739]
[1742817123637,12.88821964,2099.5,2099.2,0.25138739]
[1742817123952,4.552,2099.8,2099.3,0.7881]
[1742817124136,9.31451,2099.8,2099.4,4.76317]
[1742817124339,4.7626,2099.7,2099.5,0.25079324]
[1742817124540,4.76262,2099.7,2099.5,0.25079324]
[1742817124740,9.52539,2099.7,2099.5,0.25079324]
[1742817124939,4.76281,2099.6,2099.3,5.55155]
[1742817125139,3.0,2099.7,2099.4,0.25184679]
[1742817125350,12.52548,2099.7,2099.4,0.25184679]
[1742817125667,4.76281,2099.6,2099.4,0.25184679]
[1742817126064,7.76267,2099.7,2099.4,0.25184679]
[1742817126969,4.76289,2099.6,2099.4,0.25184679]
[1742817129571,4.76303,2099.5,2099.4,0.25184679]
[1742817129769,4.76289,2099.6,2099.4,0.25184679]
[1742817130568,7.76262,2099.7,2099.4,0.25184679]
[1742817130942,7.76262,2099.7,2099.4,5.01508679]
[1742817132476,3.0,2099.7,2099.4,5.01508679]
[1742817132787,7.76263,2099.7,2099.4,5.01508679]
[1742817134070,7.76263,2099.7,2099.4,9.77823679]
[1742817134071,3.0,2099.7,2099.4,9.77823679]
[1742817134277,3.0,2099.7,2099.4,9.77812679]
[1742817134573,3.0,2099.7,2099.4,5.01497679]
[1742817134876,3.0,2099.8,2099.5,4.76296]
[1742817135078,9.52445,2099.9,2099.6,0.25082472]
[1742817135255,4.76237,2099.8,2099.6,0.25082472]
[1742817136171,4.76216,2099.9,2099.6,0.25082472]
[1742817136480,4.76216,2099.9,2099.6,1.03872472]
[1742817136680,4.76216,2099.9,2099.6,5.80146472]
[1742817137552,4.76249,2099.8,2099.6,0.25082472]
[1742817138651,4.76216,2099.9,2099.6,0.25082472]
[1742817138853,9.52444,2099.9,2099.6,0.25082472]
[1742817139052,4.76237,2099.8,2099.6,0.25082472]
[1742817139247,4.76237,2099.8,2099.4,6.70130423]
[1742817139452,5.51837,2099.8,2099.5,0.2499216]
[1742817139690,7.76281,2099.6,2099.5,0.2499216]
[1742817139870,7.76281,2099.6,2099.3,7.05520546]
[1742817140070,12.52576,2099.6,2099.4,0.25011963]
[1742817140295,4.76303,2099.5,2099.4,0.25011963]
[1742817140656,7.76281,2099.6,2099.4,0.25011963]
[1742817141376,3.0,2099.6,2099.5,0.7879]
[1742817141688,3.0,2099.6,2099.5,1.0378216]
[1742817141854,4.76261,2099.7,2099.5,1.0378216]
[1742817142586,3.0,2099.7,2099.5,1.0378216]
[1742817143065,7.76267,2099.7,2099.5,1.0378216]
[1742817148165,4.76281,2099.6,2099.5,0.2499216]
[1742817148365,7.76326,2099.4,2099.3,6.12]
[1742817148570,9.10396,2099.4,2099.3,6.35109862]
[1742817149269,9.465911,2099.4,2099.3,6.35109862]
[1742817149471,11.3650951,2099.4,2099.3,6.35109862]
[1742817151093,11.3650951,2099.4,2099.3,0.23109862]
[1742817151300,4.76397,2099.1,2098.8,5.72367624]
[1742817151598,4.76397,2099.1,2098.9,0.2330597]
[1742817155209,4.76373,2099.2,2098.9,0.2330597]
[1742817155507,9.52761,2099.2,2098.9,0.2330597]
[1742817157406,4.76396,2099.1,2098.9,0.2330597]
[1742817157712,4.76417,2099.0,2098.9,0.2330597]
[1742817159285,4.76466,2098.8,2098.4,15.43652]
[1742817159480,4.76493,2098.7,2098.5,0.21755424]
[1742817159681,4.76493,2098.7,2098.5,1.15483058]
[1742817160608,4.76466,2098.8,2098.5,1.15483058]
[1742817160798,4.76466,2098.8,2098.5,2.91705264]
[1742817161400,4.76466,2098.8,2098.5,7.68234264]
[1742817163383,4.76508,2098.6,2098.5,0.21755424]
[1742817163578,4.76621,2098.1,2098.0,0.7972]
[1742817163780,4.76613,2098.2,2098.0,1.01574552]
[1742817163997,4.76602,2098.2,2098.0,1.01574552]
[1742817164204,4.766,2098.2,2098.0,1.9775657]
[1742817164404,12.53137,2098.4,2098.0,6.7439257]
[1742817164606,4.76577,2098.3,2098.0,6.7439257]
[1742817165918,7.76554,2098.4,2098.0,6.7439257]
[1742817166618,4.76576,2098.3,2098.0,6.7439257]
[1742817166915,7.76557,2098.4,2098.0,6.7439257]
[1742817167120,3.0,2098.4,2098.1,9.53226]
[1742817167423,3.0,2098.4,2098.2,0.18500509]
[1742817170023,3.0,2098.4,2098.2,4.95098509]
[1742817170221,3.0,2098.4,2098.2,0.18500509]
[1742817170924,7.76555,2098.4,2098.2,0.18500509]
[1742817171440,3.0,2098.4,2098.2,0.18500509]
[1742817171592,0.7982,2098.7,2098.5,4.76521]
[1742817171798,5.56308,2098.7,2098.3,5.56553]
[1742817172095,4.7651,2098.6,2098.3,5.56553]
[1742817172306,4.7651,2098.6,2098.4,0.18460859]
[1742817173427,0.7683,2099.1,2098.5,0.7608]
[1742817173626,10.0838,2099.3,2098.9,5.52512]
[1742817173926,9.67851525,2099.3,2099.0,0.18395503]
[1742817174109,6.43602478,2099.3,2099.0,4.94812503]
[1742817174316,3.0,2099.2,2099.0,4.94812503]
[1742817174515,1.52100953,2099.3,2099.0,4.94812503]
[1742817174915,4.52100953,2099.3,2099.0,0.18395503]
[1742817175311,9.28449953,2099.3,2099.0,0.18395503]
[1742817176438,4.52100953,2099.3,2099.0,0.18395503]
[1742817176628,3.0,2099.3,2099.0,0.18395503]
[1742817177934,3.0,2099.3,2099.1,4.76391]
[1742817178126,3.0,2099.3,2099.2,0.18064765]
[1742817178714,3.0,2099.3,2098.9,6.46454381]
[1742817178914,7.76364,2099.3,2098.9,6.46454381]
[1742817179103,7.76364,2099.3,2098.9,1.70030381]
[1742817179104,3.0,2099.2,2098.9,1.70030381]
[1742817179308,7.76379,2099.2,2098.9,0.7608]
[1742817179637,7.76379,2099.2,2098.8,9.52901]
[1742817179834,7.76379,2099.2,2098.8,4.7645]
[1742817180136,7.76379,2099.2,2098.8,4.76448]
[1742817180330,7.76379,2099.2,2098.8,4.76462]
[1742817180715,7.76379,2099.2,2098.8,6.02655742]
[1742817181237,7.76379,2099.2,2098.8,10.79107742]
[1742817181452,7.76379,2099.2,2098.8,6.02655742]
[1742817181610,7.76379,2099.2,2098.8,10.79107742]
[1742817181948,7.76379,2099.2,2098.8,6.02655742]
[1742817183014,12.52766,2099.2,2098.8,6.02655742]
[1742817183215,12.52766,2099.2,2098.9,0.18151931]
[1742817183414,7.76379,2099.2,2098.9,0.18151931]
[1742817183740,12.52767,2099.2,2098.9,0.18151931]
[1742817184317,4.76403,2099.1,2098.9,0.18151931]
[1742817185113,4.76417,2099.0,2098.9,0.18151931]
[1742817187352,6.11437285,2099.0,2098.9,0.18151931]
[1742817188355,4.76417,2099.0,2098.9,0.18151931]
[1742817190965,7.76417,2099.0,2098.9,0.18151931]
[1742817193128,7.76377,2099.2,2098.9,0.18151931]
[1742817193324,4.76377,2099.2,2098.9,0.18151931]
[1742817193540,7.76377,2099.2,2098.9,4.94590931]
[1742817194251,3.0,2099.2,2098.9,9.71006931]
[1742817194451,0.36218987,2099.4,2099.1,4.76381]
[1742817194664,4.76313,2099.5,2099.1,4.76381]
[1742817194964,3.0,2099.4,2099.1,4.76381]
[1742817195662,7.76329,2099.4,2099.1,4.76381]
[1742817197267,7.76329,2099.4,2099.1,5.71138332]
[1742817199634,5.55328,2099.7,2099.3,4.76329]
[1742817199833,3.0,2099.6,2099.3,4.76329]
[1742817200033,3.0,2099.6,2099.3,9.52663]
[1742817200436,3.0,2099.6,2099.3,4.76329]
[1742817200834,3.0,2099.6,2099.3,9.52662]
[1742817201044,3.0,2099.6,2099.3,10.88305606]
[1742817201658,4.76216,2099.9,2099.4,4.76326]
[1742817201830,14.07345,2099.9,2099.5,5.54663]
[1742817202030,3.0,2099.8,2099.5,5.54663]
[1742817203164,7.7624,2099.8,2099.5,5.54663]
[1742817203376,3.0,2099.8,2099.5,11.47615161]
[1742817203559,3.0,2099.8,2099.5,6.71322161]
[1742817204364,8.12153474,2099.8,2099.5,6.71322161]
[1742817205968,3.35914474,2099.8,2099.5,11.47610161]
[1742817206133,3.35914474,2099.8,2099.5,6.71321161]
[1742817206737,3.35914474,2099.8,2099.5,6.71328161]
[1742817206967,3.0,2099.9,2099.6,5.91044116]
[1742817207177,3.0,2100.0,2099.7,4.76248]
[1742817207347,7.76192,2100.0,2099.7,4.76248]
[1742817207548,7.76192,2100.0,2099.6,4.76279]
[1742817207749,7.76192,2100.0,2099.6,9.52546]
[1742817208069,7.76192,2100.0,2099.6,10.556376]
[1742817208574,8.12213809,2100.0,2099.6,10.556376]
[1742817208760,8.12213809,2100.0,2099.7,4.76253]
[1742817209071,12.88419809,2100.0,2099.6,5.793586]
[1742817209250,8.12213809,2100.0,2099.6,5.793586]
[1742817209451,8.12213809,2100.0,2099.6,10.556286]
[1742817209646,12.88423809,2100.0,2099.6,5.793586]
[1742817209843,4.76213,2099.9,2099.6,4.76267]
[1742817210041,4.76245,2099.8,2099.4,4.76316]
[1742817210562,4.76288,2099.6,2099.3,2.15453606]
[1742817210746,4.76288,2099.6,2099.3,1.35643606]
[1742817211149,4.76306,2099.5,2099.3,1.35643606]
[1742817211471,4.76288,2099.6,2099.3,6.11991606]
[1742817211638,5.54968,2099.6,2099.2,10.88358]
[1742817211840,4.76349,2099.3,2099.1,0.8193]
[1742817212044,4.76349,2099.3,2099.0,4.76409]
[1742817212849,9.52682,2099.4,2099.0,4.76404]
[1742817213246,9.52682,2099.4,2099.1,0.94864223]
[1742817214274,4.76353,2099.3,2099.1,0.94864223]
[1742817214655,5.11582958,2099.4,2099.1,2.09241838]
[1742817214856,4.76358,2099.3,2099.1,0.94864223]
[1742817215674,9.52722,2099.3,2099.1,0.94864223]
[1742817215847,4.76358,2099.3,2099.1,0.94864223]
[1742817216047,7.76358,2099.3,2099.1,0.94864223]
[1742817217776,3.0,2099.3,2099.1,0.94864223]
[1742817218284,7.76351,2099.3,2099.1,0.94864223]
[1742817218781,3.0,2099.3,2099.1,0.94864223]
[1742817219150,7.7635,2099.3,2099.1,0.94864223]
[1742817219352,3.0,2099.3,2099.1,0.94864223]
[1742817222555,3.0,2099.3,2099.1,5.71251223]
[1742817222754,0.3542383,2099.4,2099.1,6.37974538]
[1742817222989,9.52625,2099.5,2099.1,6.37974538]
[1742817223154,3.0,2099.5,2099.1,1.61596538]
[1742817223357,7.548,2099.7,2099.4,4.76313]
[1742817223675,4.76215,2099.9,2099.6,4.76281]
[1742817223995,9.52446,2099.9,2099.5,4.76292]
[1742817224161,3.0,2099.8,2099.5,4.76292]
[1742817224361,3.35883146,2099.8,2099.5,4.76292]
[1742817224975,3.35883146,2099.8,2099.5,9.52586]
[1742817225599,3.35883146,2099.8,2099.5,4.76292]
[1742817226273,3.35883146,2099.8,2099.5,9.52586]
[1742817226475,0.35883146,2099.8,2099.5,5.794137]
[1742817226657,9.52445,2099.9,2099.5,5.794137]
[1742817227284,9.52445,2099.9,2099.5,4.76292]
[1742817227878,4.76215,2099.9,2099.5,4.76292]
[1742817228891,4.76215,2099.9,2099.5,5.71856344]
[1742817229081,4.76237,2099.8,2099.5,5.71856344]
[1742817229390,0.35450172,2099.8,2099.5,5.71856344]
[1742817229594,9.52443,2099.9,2099.5,5.71856344]
[1742817229763,4.7624,2099.8,2099.5,5.71856344]
[1742817231811,4.7624,2099.8,2099.5,0.95564344]
[1742817232010,10.33462,2099.8,2099.5,0.95564344]
[1742817232307,7.060392,2099.8,2099.5,0.95564344]
[1742817232479,9.52549,2099.7,2099.3,5.54945]
[1742817232819,4.76271,2099.7,2099.3,10.31281]
[1742817232961,4.76271,2099.7,2099.4,0.9337957]
[1742817233465,4.76271,2099.7,2099.4,5.6970557]
[1742817233865,5.57206,2099.8,2099.4,5.6970557]
[1742817234300,5.93124888,2099.8,2099.4,5.6970557]
[1742817234599,4.76272,2099.7,2099.4,0.9337957]
[1742817235073,4.76272,2099.7,2099.4,5.6970457]
[1742817236111,4.76272,2099.7,2099.4,0.9337957]
[1742817236695,4.76272,2099.7,2099.4,5.6970457]
[1742817238097,4.76272,2099.7,2099.4,0.9337957]
[1742817238698,9.52547,2099.7,2099.4,0.9337957]
[1742817238897,4.76272,2099.7,2099.4,0.9337957]
[1742817239265,4.76272,2099.7,2099.3,0.786]
[1742817239578,5.58214,2099.5,2099.1,11.66866]
[1742817239894,5.58214,2099.5,2099.2,0.97374345]
[1742817240400,4.76334,2099.4,2099.2,0.97374345]
[1742817240899,4.76334,2099.4,2099.1,10.88386]
[1742817241601,4.76334,2099.4,2099.1,11.81552812]
[1742817241769,4.76334,2099.4,2099.1,13.56944686]
[1742817246906,5.58201,2099.5,2099.1,18.33323686]
[1742817247285,10.3452,2099.5,2099.1,13.56937686]
[1742817247793,5.58201,2099.5,2099.1,13.56937686]
[1742817247995,5.58201,2099.5,2099.1,18.33318686]
[1742817248176,5.58201,2099.5,2099.1,13.56937686]
[1742817248505,0.8189,2099.5,2099.2,4.76362]
[1742817248815,0.8189,2099.5,2099.2,6.59693269]
[1742817249212,14.07183,2099.6,2099.2,6.59693269]
[1742817249576,4.546,2099.6,2099.3,4.76348]
[1742817250286,4.546,2099.6,2099.3,4.76341]
[1742817250485,7.76283,2099.6,2099.2,2.64761269]
[1742817250689,4.76315,2099.5,2099.1,11.81549812]
[1742817250909,4.76315,2099.5,2099.1,16.57932812]